[Event "*** Titled Tuesday Blitz"]
[Site "Chess.com"]
[Date "2021.02.09"]
[Round "8"]
[White "chessmadara"]
[Black "A-S-00"]
[Result "1-0"]
[WhiteElo "2169"]
[BlackElo "2284"]
[TimeControl "180+1"]
[EndTime "11:29:19 PST"]
[Termination "chessmadara won on time"]

1. c4 {[%clk 0:03:00.9]} 1... e5 {[%clk 0:02:59.5]} 2. g3 {[%clk 0:02:59.1]}
2... Nf6 {[%clk 0:02:59]} 3. Bg2 {[%clk 0:02:59.2]} 3... c6 {[%clk 0:02:59.1]}
4. Nf3 {[%clk 0:02:53.2]} 4... e4 {[%clk 0:02:58.5]} 5. Nd4 {[%clk 0:02:52.9]}
5... d5 {[%clk 0:02:58.6]} 6. cxd5 {[%clk 0:02:50.5]} 6... cxd5 {[%clk
0:02:58.9]} 7. O-O {[%clk 0:02:49.6]} 7... Be7 {[%clk 0:02:55.3]} 8. d3 {[%clk
0:02:49.3]} 8... O-O {[%clk 0:02:55.2]} 9. Nc3 {[%clk 0:02:48.4]} 9... Nc6
{[%clk 0:02:54.1]} 10. dxe4 {[%clk 0:02:46.8]} 10... dxe4 {[%clk 0:02:40.7]} 11.
Nxc6 {[%clk 0:02:44.8]} 11... bxc6 {[%clk 0:02:37.3]} 12. Nxe4 {[%clk
0:02:43.8]} 12... Nd5 {[%clk 0:02:35.2]} 13. Bd2 {[%clk 0:02:37.8]} 13... Rb8
{[%clk 0:02:32.3]} 14. b3 {[%clk 0:02:34.7]} 14... f5 {[%clk 0:02:26.2]} 15. Nc3
{[%clk 0:02:32.2]} 15... Bf6 {[%clk 0:02:25.8]} 16. Rc1 {[%clk 0:02:29.1]} 16...
Bb7 {[%clk 0:01:52]} 17. Nxd5 {[%clk 0:02:20.3]} 17... cxd5 {[%clk 0:01:51.9]}
18. Bf4 {[%clk 0:02:20.1]} 18... Rc8 {[%clk 0:01:32.8]} 19. Rxc8 {[%clk
0:02:19.8]} 19... Bxc8 {[%clk 0:01:31.7]} 20. Qxd5+ {[%clk 0:02:16.3]} 20... Kh8
{[%clk 0:01:30.6]} 21. Rd1 {[%clk 0:02:04]} 21... Qb6 {[%clk 0:01:16.7]} 22. Qd6
{[%clk 0:01:59.9]} 22... Qxd6 {[%clk 0:01:09.2]} 23. Rxd6 {[%clk 0:01:56]} 23...
Re8 {[%clk 0:01:08.8]} 24. e3 {[%clk 0:01:45.1]} 24... Be7 {[%clk 0:01:01.9]}
25. Rd1 {[%clk 0:01:35.3]} 25... Be6 {[%clk 0:00:56.3]} 26. Be5 {[%clk
0:01:23.9]} 26... Kg8 {[%clk 0:00:51.1]} 27. Bd5 {[%clk 0:01:21.9]} 27... Bc5
{[%clk 0:00:33.9]} 28. Bxe6+ {[%clk 0:01:17.7]} 28... Rxe6 {[%clk 0:00:34.8]}
29. Bd4 {[%clk 0:01:14.9]} 29... Rd6 {[%clk 0:00:17.3]} 30. Kf1 {[%clk
0:01:11.8]} 30... Kf7 {[%clk 0:00:16.7]} 31. Ke2 {[%clk 0:01:11.3]} 31... Bxd4
{[%clk 0:00:15]} 32. Rxd4 {[%clk 0:01:09.8]} 32... Rc6 {[%clk 0:00:12.7]} 33.
Rd7+ {[%clk 0:01:05]} 33... Kf6 {[%clk 0:00:13.1]} 34. Rxa7 {[%clk 0:01:04.5]}
34... Rc2+ {[%clk 0:00:12.9]} 35. Kf3 {[%clk 0:01:02.4]} 35... Rb2 {[%clk
0:00:13.1]} 36. h4 {[%clk 0:00:58.7]} 36... h5 {[%clk 0:00:11.8]} 37. Ra6+
{[%clk 0:00:55]} 37... Kf7 {[%clk 0:00:11.7]} 38. Ra4 {[%clk 0:00:52.9]} 38...
Rc2 {[%clk 0:00:10.2]} 39. b4 {[%clk 0:00:51.2]} 39... Rb2 {[%clk 0:00:10.5]}
40. a3 {[%clk 0:00:50.4]} 40... Kg6 {[%clk 0:00:10.7]} 41. Ra5 {[%clk
0:00:50.4]} 41... Rb3 {[%clk 0:00:09.1]} 42. b5 {[%clk 0:00:50]} 42... Kh7
{[%clk 0:00:08.8]} 43. a4 {[%clk 0:00:49.8]} 43... Rb4 {[%clk 0:00:05.4]} 44.
Ra6 {[%clk 0:00:49.5]} 44... g6 {[%clk 0:00:04.1]} 45. b6 {[%clk 0:00:49.2]}
45... Kh6 {[%clk 0:00:04.5]} 46. a5 {[%clk 0:00:48.9]} 46... Rb5 {[%clk
0:00:02.2]} 47. Ra7 {[%clk 0:00:46.8]} 1-0

[Event "*** Titled Tuesday Blitz"]
[Site "Chess.com"]
[Date "2021.02.09"]
[Round "8"]
[White "rogapa"]
[Black "FlySooHigh"]
[Result "0-1"]
[WhiteElo "2723"]
[BlackElo "2601"]
[TimeControl "180+1"]
[EndTime "11:29:20 PST"]
[Termination "FlySooHigh won on time"]

1. e4 {[%clk 0:03:00.9]} 1... c5 {[%clk 0:02:59.8]} 2. Nf3 {[%clk 0:02:59.3]}
2... d6 {[%clk 0:02:59.9]} 3. d4 {[%clk 0:02:58.9]} 3... cxd4 {[%clk 0:03:00.8]}
4. Nxd4 {[%clk 0:02:59]} 4... Nf6 {[%clk 0:03:01.4]} 5. Nc3 {[%clk 0:02:59.2]}
5... g6 {[%clk 0:03:01.5]} 6. Be3 {[%clk 0:02:59.1]} 6... Bg7 {[%clk 0:03:01.8]}
7. f3 {[%clk 0:02:59.2]} 7... O-O {[%clk 0:03:02.5]} 8. Qd2 {[%clk 0:02:59.4]}
8... Nc6 {[%clk 0:03:03]} 9. O-O-O {[%clk 0:02:59.5]} 9... d5 {[%clk 0:03:03.4]}
10. Nxc6 {[%clk 0:02:58.5]} 10... bxc6 {[%clk 0:03:03]} 11. Bh6 {[%clk
0:02:58.2]} 11... Bxh6 {[%clk 0:02:54.5]} 12. Qxh6 {[%clk 0:02:59.1]} 12... Qb6
{[%clk 0:02:54.7]} 13. e5 {[%clk 0:02:52.3]} 13... Nd7 {[%clk 0:02:45.9]} 14.
Re1 {[%clk 0:02:50.5]} 14... Rb8 {[%clk 0:02:45]} 15. Nd1 {[%clk 0:02:49.3]}
15... Qa5 {[%clk 0:02:39.2]} 16. Re3 {[%clk 0:02:47.9]} 16... d4 {[%clk
0:02:31.2]} 17. Re4 {[%clk 0:02:42]} 17... Rd8 {[%clk 0:02:08.7]} 18. e6 {[%clk
0:02:31.4]} 18... f5 {[%clk 0:01:33.8]} 19. exd7 {[%clk 0:02:27.9]} 19... fxe4
{[%clk 0:01:28.5]} 20. Bc4+ {[%clk 0:02:26.7]} 20... Kh8 {[%clk 0:01:28.2]} 21.
dxc8=R {[%clk 0:02:24.6]} 21... Rbxc8 {[%clk 0:01:20.5]} 22. fxe4 {[%clk
0:02:22.8]} 22... Rf8 {[%clk 0:01:12.5]} 23. Qh4 {[%clk 0:02:15.3]} 23... Qe5
{[%clk 0:01:10.3]} 24. Re1 {[%clk 0:01:56.2]} 24... c5 {[%clk 0:01:10]} 25. b3
{[%clk 0:01:54.5]} 25... a5 {[%clk 0:01:07.6]} 26. a4 {[%clk 0:01:52.8]} 26...
d3 {[%clk 0:01:05.4]} 27. cxd3 {[%clk 0:01:40.8]} 27... Rf6 {[%clk 0:00:56.4]}
28. Re2 {[%clk 0:01:09.2]} 28... Rcf8 {[%clk 0:00:53.3]} 29. Kc2 {[%clk
0:01:03.5]} 29... Rf1 {[%clk 0:00:50.3]} 30. Nb2 {[%clk 0:00:35.1]} 30... Qd4
{[%clk 0:00:36.9]} 31. Rd2 {[%clk 0:00:12.8]} 31... R1f2 {[%clk 0:00:33.3]} 32.
Nd1 {[%clk 0:00:12]} 32... Rf1 {[%clk 0:00:21.4]} 33. Qg3 {[%clk 0:00:09.6]}
33... Qa1 {[%clk 0:00:19.6]} 34. d4 {[%clk 0:00:07.8]} 34... Qa2+ {[%clk
0:00:16]} 35. Kd3 {[%clk 0:00:04.8]} 35... Qb1+ {[%clk 0:00:14.2]} 36. Ke3
{[%clk 0:00:01.4]} 36... Rxd1 {[%clk 0:00:11.5]} 37. Qe5+ {[%clk 0:00:02.3]}
37... Rf6 {[%clk 0:00:11.6]} 0-1

[Event "*** Titled Tuesday Blitz"]
[Site "Chess.com"]
[Date "2021.02.09"]
[Round "8"]
[White "ARTHURMOTIVATOR"]
[Black "BairaKovanova"]
[Result "1-0"]
[WhiteElo "2301"]
[BlackElo "2465"]
[TimeControl "180+1"]
[EndTime "11:29:20 PST"]
[Termination "ARTHURMOTIVATOR won on time"]

1. e4 {[%clk 0:03:00.6]} 1... e5 {[%clk 0:02:59.1]} 2. Nc3 {[%clk 0:02:55.7]}
2... d6 {[%clk 0:02:54.6]} 3. g3 {[%clk 0:02:52.6]} 3... Nf6 {[%clk 0:02:50.8]}
4. Bg2 {[%clk 0:02:51.6]} 4... Be7 {[%clk 0:02:51]} 5. Nge2 {[%clk 0:02:50.1]}
5... Nc6 {[%clk 0:02:48.7]} 6. O-O {[%clk 0:02:49.2]} 6... Bg4 {[%clk
0:02:42.2]} 7. h3 {[%clk 0:02:46.6]} 7... Bh5 {[%clk 0:02:27.9]} 8. f4 {[%clk
0:02:19]} 8... exf4 {[%clk 0:02:23.3]} 9. gxf4 {[%clk 0:02:16.7]} 9... Qd7
{[%clk 0:02:20.9]} 10. d4 {[%clk 0:02:11.4]} 10... Bxe2 {[%clk 0:01:46.9]} 11.
Nxe2 {[%clk 0:02:08.4]} 11... d5 {[%clk 0:01:46.9]} 12. exd5 {[%clk 0:01:57.6]}
12... Nxd5 {[%clk 0:01:43.2]} 13. Nc3 {[%clk 0:01:38.5]} 13... Nf6 {[%clk
0:01:11.6]} 14. d5 {[%clk 0:01:31.4]} 14... Bc5+ {[%clk 0:01:11.3]} 15. Kh2
{[%clk 0:01:25.7]} 15... Ne7 {[%clk 0:01:11.1]} 16. Ne4 {[%clk 0:01:06]} 16...
Nxe4 {[%clk 0:01:08]} 17. Bxe4 {[%clk 0:01:04.6]} 17... O-O-O {[%clk 0:01:01.8]}
18. c4 {[%clk 0:00:48.3]} 18... Nf5 {[%clk 0:01:01.1]} 19. b4 {[%clk 0:00:40.8]}
19... Be7 {[%clk 0:00:48.7]} 20. c5 {[%clk 0:00:30.4]} 20... g6 {[%clk
0:00:26.8]} 21. Qc2 {[%clk 0:00:16.6]} 21... Nd4 {[%clk 0:00:21.6]} 22. Qc4
{[%clk 0:00:15.7]} 22... f5 {[%clk 0:00:14.6]} 23. Bg2 {[%clk 0:00:14.3]} 23...
Bf6 {[%clk 0:00:13]} 24. Bb2 {[%clk 0:00:14.4]} 24... Rhe8 {[%clk 0:00:06.1]}
25. Bxd4 {[%clk 0:00:13.5]} 25... Bxd4 {[%clk 0:00:06.2]} 26. Qxd4 {[%clk
0:00:14.4]} 26... Re2 {[%clk 0:00:06.5]} 27. Rf2 {[%clk 0:00:14.2]} 27... Rde8
{[%clk 0:00:06.2]} 28. Rxe2 {[%clk 0:00:12.3]} 28... Rxe2 {[%clk 0:00:06.8]} 29.
c6 {[%clk 0:00:11.9]} 29... bxc6 {[%clk 0:00:05.9]} 30. Qxa7 {[%clk 0:00:11.7]}
30... Kd8 {[%clk 0:00:04.4]} 31. Rd1 {[%clk 0:00:09.8]} 31... cxd5 {[%clk
0:00:02.6]} 32. Qa8+ {[%clk 0:00:07.8]} 32... Ke7 {[%clk 0:00:02.9]} 33. Qxd5
{[%clk 0:00:07.1]} 33... Qxd5 {[%clk 0:00:01.8]} 34. Rxd5 {[%clk 0:00:08]} 34...
Rxa2 {[%clk 0:00:02.2]} 35. Rc5 {[%clk 0:00:08.2]} 1-0

[Event "*** Titled Tuesday Blitz"]
[Site "Chess.com"]
[Date "2021.02.09"]
[Round "8"]
[White "djano"]
[Black "Mr_Sinigami"]
[Result "0-1"]
[WhiteElo "2473"]
[BlackElo "2641"]
[TimeControl "180+1"]
[EndTime "11:29:22 PST"]
[Termination "Mr_Sinigami won by resignation"]

1. c4 {[%clk 0:03:00.9]} 1... Nf6 {[%clk 0:02:58.9]} 2. Nc3 {[%clk 0:02:56.7]}
2... g6 {[%clk 0:02:57.5]} 3. g3 {[%clk 0:02:52]} 3... Bg7 {[%clk 0:02:57.4]} 4.
Bg2 {[%clk 0:02:52.5]} 4... O-O {[%clk 0:02:57.8]} 5. e4 {[%clk 0:02:53.1]} 5...
d6 {[%clk 0:02:58]} 6. Nge2 {[%clk 0:02:53.5]} 6... e5 {[%clk 0:02:56.3]} 7. O-O
{[%clk 0:02:52.8]} 7... Nc6 {[%clk 0:02:51.7]} 8. h3 {[%clk 0:02:50.3]} 8... Nd7
{[%clk 0:02:49.2]} 9. d3 {[%clk 0:02:47.6]} 9... Nc5 {[%clk 0:02:42.2]} 10. f4
{[%clk 0:02:44.1]} 10... f5 {[%clk 0:02:40.1]} 11. Be3 {[%clk 0:02:37.3]} 11...
Nd4 {[%clk 0:02:34.7]} 12. Qd2 {[%clk 0:02:09.9]} 12... Nce6 {[%clk 0:02:23.6]}
13. Kh2 {[%clk 0:02:05]} 13... c6 {[%clk 0:02:21.4]} 14. Rf2 {[%clk 0:01:59.7]}
14... Bd7 {[%clk 0:02:14.7]} 15. Raf1 {[%clk 0:01:58.9]} 15... Qe7 {[%clk
0:02:14.4]} 16. b3 {[%clk 0:01:58]} 16... a6 {[%clk 0:02:02.2]} 17. exf5 {[%clk
0:01:49.7]} 17... Nxf5 {[%clk 0:01:58.6]} 18. fxe5 {[%clk 0:01:43.3]} 18... Nxe3
{[%clk 0:01:47.5]} 19. Qxe3 {[%clk 0:01:39.2]} 19... Rxf2 {[%clk 0:01:39.6]} 20.
Rxf2 {[%clk 0:01:40.1]} 20... dxe5 {[%clk 0:01:28.9]} 21. Ne4 {[%clk 0:01:40.2]}
21... Nd4 {[%clk 0:01:23.5]} 22. N2c3 {[%clk 0:01:37.1]} 22... Rf8 {[%clk
0:01:12.2]} 23. c5 {[%clk 0:01:36.7]} 23... h6 {[%clk 0:01:08.4]} 24. g4 {[%clk
0:01:28.4]} 24... Rf4 {[%clk 0:01:04.1]} 25. Nd6 {[%clk 0:01:14.7]} 25... Qf8
{[%clk 0:01:01.5]} 26. Kg1 {[%clk 0:01:01]} 26... b5 {[%clk 0:00:50.5]} 27. Nce4
{[%clk 0:00:51.8]} 27... Be6 {[%clk 0:00:46.9]} 28. Qe1 {[%clk 0:00:22.6]} 28...
Bd5 {[%clk 0:00:37.3]} 29. Qe3 {[%clk 0:00:22.9]} 29... a5 {[%clk 0:00:36.7]}
30. Qe1 {[%clk 0:00:21.6]} 30... a4 {[%clk 0:00:35.7]} 31. bxa4 {[%clk 0:00:22]}
31... bxa4 {[%clk 0:00:36]} 32. a3 {[%clk 0:00:22.2]} 32... Bb3 {[%clk
0:00:34.7]} 33. Qe3 {[%clk 0:00:19.6]} 33... Nc2 {[%clk 0:00:30.5]} 34. Qe2
{[%clk 0:00:19]} 34... Nxa3 {[%clk 0:00:30.1]} 35. g5 {[%clk 0:00:11.1]} 35...
hxg5 {[%clk 0:00:25]} 36. Nxg5 {[%clk 0:00:10.8]} 36... Nc2 {[%clk 0:00:24.8]}
37. Rxf4 {[%clk 0:00:10.2]} 37... Qxf4 {[%clk 0:00:22.6]} 38. Nde4 {[%clk
0:00:10.7]} 38... a3 {[%clk 0:00:20.5]} 39. Qd1 {[%clk 0:00:08]} 39... a2 {[%clk
0:00:19.8]} 0-1

[Event "*** Titled Tuesday Blitz"]
[Site "Chess.com"]
[Date "2021.02.09"]
[Round "8"]
[White "AlexTriapishko"]
[Black "chessdjw"]
[Result "1-0"]
[WhiteElo "2865"]
[BlackElo "2651"]
[TimeControl "180+1"]
[EndTime "11:29:23 PST"]
[Termination "AlexTriapishko won by checkmate"]

1. d4 {[%clk 0:03:00.9]} 1... Nf6 {[%clk 0:02:59.2]} 2. c4 {[%clk 0:03:01.8]}
2... g6 {[%clk 0:02:59.7]} 3. Nc3 {[%clk 0:02:01.6]} 3... d5 {[%clk 0:02:58.3]}
4. Bf4 {[%clk 0:01:56.1]} 4... Bg7 {[%clk 0:02:57.4]} 5. e3 {[%clk 0:01:56.6]}
5... O-O {[%clk 0:02:57.8]} 6. Nf3 {[%clk 0:01:57.2]} 6... c5 {[%clk 0:02:57.4]}
7. dxc5 {[%clk 0:01:57.2]} 7... Ne4 {[%clk 0:02:57.5]} 8. Rc1 {[%clk 0:01:51]}
8... Nd7 {[%clk 0:02:57.4]} 9. cxd5 {[%clk 0:01:48]} 9... Qa5 {[%clk 0:02:57.8]}
10. Be2 {[%clk 0:01:45.7]} 10... Nxc3 {[%clk 0:02:54.8]} 11. bxc3 {[%clk
0:01:46.6]} 11... Bxc3+ {[%clk 0:02:53.8]} 12. Kf1 {[%clk 0:01:47.1]} 12... Nxc5
{[%clk 0:02:51.8]} 13. h4 {[%clk 0:01:47.6]} 13... Bd7 {[%clk 0:02:47]} 14. Kg1
{[%clk 0:01:45.2]} 14... Ba4 {[%clk 0:02:18.3]} 15. Qf1 {[%clk 0:01:43.9]} 15...
Ne4 {[%clk 0:01:50.2]} 16. Bd3 {[%clk 0:01:30.7]} 16... Nf6 {[%clk 0:01:39.2]}
17. e4 {[%clk 0:01:27.5]} 17... h5 {[%clk 0:01:36.3]} 18. Ne5 {[%clk 0:01:09.2]}
18... Rac8 {[%clk 0:01:21.1]} 19. Nc4 {[%clk 0:01:01.3]} 19... Qb4 {[%clk
0:00:35.4]} 20. a3 {[%clk 0:00:49.4]} 20... Qb3 {[%clk 0:00:35.5]} 21. Rh3
{[%clk 0:00:35.8]} 21... Ng4 {[%clk 0:00:20.8]} 22. Be2 {[%clk 0:00:28.2]} 22...
Bd4 {[%clk 0:00:04.7]} 23. Rxb3 {[%clk 0:00:26.8]} 23... Bxf2+ {[%clk
0:00:03.7]} 24. Kh1 {[%clk 0:00:22.1]} 24... Bxb3 {[%clk 0:00:03.5]} 25. Bxg4
{[%clk 0:00:22.8]} 25... hxg4 {[%clk 0:00:03.7]} 26. Qxf2 {[%clk 0:00:21.9]}
26... Bxc4 {[%clk 0:00:04.1]} 27. h5 {[%clk 0:00:18.8]} 27... gxh5 {[%clk
0:00:04.2]} 28. Bh6 {[%clk 0:00:19.2]} 28... Rfe8 {[%clk 0:00:02.4]} 29. Qd4
{[%clk 0:00:19.6]} 29... f6 {[%clk 0:00:02.6]} 30. Rxc4 {[%clk 0:00:19.3]} 30...
Kf7 {[%clk 0:00:03.3]} 31. d6 {[%clk 0:00:18.8]} 31... exd6 {[%clk 0:00:02.9]}
32. Qd5+ {[%clk 0:00:19]} 32... Kg6 {[%clk 0:00:03]} 33. Rxc8 {[%clk 0:00:17.8]}
33... Rxc8 {[%clk 0:00:03.1]} 34. Qf5+ {[%clk 0:00:18.4]} 34... Kxh6 {[%clk
0:00:03.7]} 35. Qxf6+ {[%clk 0:00:19]} 35... Kh7 {[%clk 0:00:03.7]} 36. Qf5+
{[%clk 0:00:19.9]} 36... Kh6 {[%clk 0:00:04.3]} 37. Qxc8 {[%clk 0:00:20.8]}
37... Kg6 {[%clk 0:00:05.2]} 38. Qf5+ {[%clk 0:00:20.6]} 38... Kg7 {[%clk
0:00:05.6]} 39. Qd5 {[%clk 0:00:21.5]} 39... Kh6 {[%clk 0:00:05.6]} 40. Qxd6+
{[%clk 0:00:22.1]} 40... Kg5 {[%clk 0:00:05.6]} 41. Qe5+ {[%clk 0:00:22.4]}
41... Kh4 {[%clk 0:00:06.5]} 42. Qf6+ {[%clk 0:00:19.5]} 42... Kg3 {[%clk
0:00:06.3]} 43. Kg1 {[%clk 0:00:20.1]} 43... b5 {[%clk 0:00:05.3]} 44. Qf2#
{[%clk 0:00:21]} 1-0

[Event "*** Titled Tuesday Blitz"]
[Site "Chess.com"]
[Date "2021.02.09"]
[Round "8"]
[White "manmanlai1"]
[Black "Meri-Arabidze"]
[Result "1-0"]
[WhiteElo "2483"]
[BlackElo "2591"]
[TimeControl "180+1"]
[EndTime "11:29:25 PST"]
[Termination "manmanlai1 won on time"]

1. c4 {[%clk 0:03:00.1]} 1... e6 {[%clk 0:02:58.8]} 2. Nc3 {[%clk 0:02:58.8]}
2... d5 {[%clk 0:02:59.7]} 3. cxd5 {[%clk 0:02:56.2]} 3... exd5 {[%clk
0:02:59.4]} 4. Nf3 {[%clk 0:02:52.2]} 4... Nf6 {[%clk 0:02:43.3]} 5. e3 {[%clk
0:02:49.8]} 5... c5 {[%clk 0:02:42.5]} 6. d4 {[%clk 0:02:47.3]} 6... Nc6 {[%clk
0:02:42.3]} 7. Bd3 {[%clk 0:02:42.8]} 7... Bd6 {[%clk 0:02:29.7]} 8. dxc5 {[%clk
0:02:41.3]} 8... Bxc5 {[%clk 0:02:30.6]} 9. O-O {[%clk 0:02:40.4]} 9... O-O
{[%clk 0:02:30.8]} 10. Ne2 {[%clk 0:02:35.8]} 10... a6 {[%clk 0:02:28.1]} 11. b3
{[%clk 0:02:32.8]} 11... Bg4 {[%clk 0:02:26.9]} 12. Bb2 {[%clk 0:02:25.8]} 12...
Bxf3 {[%clk 0:02:26.1]} 13. gxf3 {[%clk 0:02:22]} 13... d4 {[%clk 0:02:16.9]}
14. Rc1 {[%clk 0:02:09]} 14... Ba7 {[%clk 0:02:11.1]} 15. e4 {[%clk 0:01:50.2]}
15... Ne5 {[%clk 0:02:03.5]} 16. f4 {[%clk 0:01:44.3]} 16... Ng6 {[%clk
0:01:56.6]} 17. f5 {[%clk 0:01:36.1]} 17... Ne5 {[%clk 0:01:56.2]} 18. Kh1
{[%clk 0:01:32]} 18... Nfg4 {[%clk 0:01:52.7]} 19. h3 {[%clk 0:00:58.7]} 19...
Qh4 {[%clk 0:01:52]} 20. Kg2 {[%clk 0:00:56.6]} 20... Nxd3 {[%clk 0:01:30.6]}
21. Qxd3 {[%clk 0:00:53.3]} 21... Ne5 {[%clk 0:01:31.2]} 22. Qg3 {[%clk
0:00:52.7]} 22... Qxg3+ {[%clk 0:01:24]} 23. Nxg3 {[%clk 0:00:50]} 23... Nd3
{[%clk 0:01:16.5]} 24. Rc2 {[%clk 0:00:46.6]} 24... Rfc8 {[%clk 0:01:14.6]} 25.
Rd2 {[%clk 0:00:46.9]} 25... Nxb2 {[%clk 0:01:13.5]} 26. Rxb2 {[%clk 0:00:47.8]}
26... d3 {[%clk 0:00:53.7]} 27. Rd2 {[%clk 0:00:44.7]} 27... Rc2 {[%clk
0:00:52]} 28. Rfd1 {[%clk 0:00:44.4]} 28... Rac8 {[%clk 0:00:42.3]} 29. e5
{[%clk 0:00:36.8]} 29... h6 {[%clk 0:00:39.5]} 30. Ne4 {[%clk 0:00:36.4]} 30...
Bd4 {[%clk 0:00:29.7]} 31. e6 {[%clk 0:00:34.6]} 31... fxe6 {[%clk 0:00:29.5]}
32. fxe6 {[%clk 0:00:35.5]} 32... Re8 {[%clk 0:00:20.6]} 33. Rxd3 {[%clk
0:00:31.5]} 33... Ba7 {[%clk 0:00:18]} 34. Rd8 {[%clk 0:00:30.2]} 34... Kf8
{[%clk 0:00:15.1]} 35. R1d7 {[%clk 0:00:22]} 35... Rxd8 {[%clk 0:00:13.6]} 36.
e7+ {[%clk 0:00:18.8]} 1-0

[Event "*** Titled Tuesday Blitz"]
[Site "Chess.com"]
[Date "2021.02.09"]
[Round "8"]
[White "LilRag"]
[Black "bascheyaro"]
[Result "0-1"]
[WhiteElo "2602"]
[BlackElo "2743"]
[TimeControl "180+1"]
[EndTime "11:29:28 PST"]
[Termination "bascheyaro won by resignation"]

1. c4 {[%clk 0:02:55.3]} 1... e5 {[%clk 0:02:59.6]} 2. Nc3 {[%clk 0:02:54.2]}
2... c5 {[%clk 0:02:59.4]} 3. g3 {[%clk 0:02:54.3]} 3... Nc6 {[%clk 0:02:59.7]}
4. Bg2 {[%clk 0:02:54.8]} 4... g6 {[%clk 0:03:00.2]} 5. d3 {[%clk 0:02:52.9]}
5... Bg7 {[%clk 0:03:00.5]} 6. e4 {[%clk 0:02:50.4]} 6... d6 {[%clk 0:03:00.2]}
7. Nge2 {[%clk 0:02:50.9]} 7... Nge7 {[%clk 0:02:59.6]} 8. O-O {[%clk
0:02:51.5]} 8... O-O {[%clk 0:02:59.8]} 9. h3 {[%clk 0:02:50.3]} 9... Nd4 {[%clk
0:02:59.4]} 10. Be3 {[%clk 0:02:49.9]} 10... Nec6 {[%clk 0:02:59.2]} 11. f4
{[%clk 0:02:40.9]} 11... f5 {[%clk 0:02:57.3]} 12. Kh2 {[%clk 0:02:38]} 12...
fxe4 {[%clk 0:02:54.8]} 13. Bxe4 {[%clk 0:02:34.6]} 13... Be6 {[%clk 0:02:49.9]}
14. Qd2 {[%clk 0:02:26.4]} 14... Qd7 {[%clk 0:02:49.1]} 15. Bg2 {[%clk
0:02:26.2]} 15... Rae8 {[%clk 0:02:48.3]} 16. Rae1 {[%clk 0:02:26.4]} 16... a6
{[%clk 0:02:42.6]} 17. Nd5 {[%clk 0:02:25.8]} 17... b5 {[%clk 0:02:38.1]} 18. b3
{[%clk 0:02:22.8]} 18... b4 {[%clk 0:02:27.8]} 19. fxe5 {[%clk 0:02:20.3]} 19...
Nxe2 {[%clk 0:02:15.5]} 20. Qxe2 {[%clk 0:02:15.1]} 20... Bxe5 {[%clk
0:01:55.7]} 21. Rxf8+ {[%clk 0:02:03.8]} 21... Rxf8 {[%clk 0:01:55.3]} 22. Bh6
{[%clk 0:02:04.4]} 22... Rf7 {[%clk 0:01:54.2]} 23. Nf4 {[%clk 0:01:56.4]} 23...
Nd4 {[%clk 0:01:51.2]} 24. Qe4 {[%clk 0:01:50.8]} 24... Re7 {[%clk 0:01:20.7]}
25. Nxe6 {[%clk 0:01:40.7]} 25... Nxe6 {[%clk 0:01:20.7]} 26. Rf1 {[%clk
0:01:32.6]} 26... Bg7 {[%clk 0:01:16.3]} 27. Bxg7 {[%clk 0:01:31.2]} 27... Kxg7
{[%clk 0:01:13.5]} 28. Qa8 {[%clk 0:01:16.1]} 28... Rf7 {[%clk 0:01:13.3]} 29.
Re1 {[%clk 0:01:01.9]} 29... Nd4 {[%clk 0:01:07.9]} 30. Qxa6 {[%clk 0:00:51.7]}
30... Rf2 {[%clk 0:01:01.3]} 31. Qa8 {[%clk 0:00:42.2]} 31... Nf3+ {[%clk
0:00:58.2]} 32. Qxf3 {[%clk 0:00:37.5]} 32... Rxf3 {[%clk 0:00:58.3]} 33. Bxf3
{[%clk 0:00:37.9]} 33... Qf5 {[%clk 0:00:58.4]} 34. Re3 {[%clk 0:00:29.6]} 34...
Qg5 {[%clk 0:00:58.3]} 35. Re2 {[%clk 0:00:28]} 35... Qc1 {[%clk 0:00:57.2]} 36.
Kg2 {[%clk 0:00:26.1]} 36... Qb1 {[%clk 0:00:54.9]} 37. Be4 {[%clk 0:00:26]}
37... Kf6 {[%clk 0:00:53.9]} 38. d4 {[%clk 0:00:19.3]} 38... Qd1 {[%clk
0:00:53.9]} 39. Rf2+ {[%clk 0:00:18.6]} 39... Kg7 {[%clk 0:00:51.5]} 40. dxc5
{[%clk 0:00:18.5]} 40... dxc5 {[%clk 0:00:49]} 41. Bd5 {[%clk 0:00:19]} 41... h5
{[%clk 0:00:43.8]} 42. Rf7+ {[%clk 0:00:18.8]} 42... Kh6 {[%clk 0:00:43.9]} 43.
h4 {[%clk 0:00:18.5]} 43... Qd4 {[%clk 0:00:42]} 44. Rf2 {[%clk 0:00:18.6]}
44... g5 {[%clk 0:00:41.2]} 45. hxg5+ {[%clk 0:00:16.4]} 45... Kxg5 {[%clk
0:00:42.1]} 46. Rf4 {[%clk 0:00:16.6]} 46... Qe3 {[%clk 0:00:41.5]} 47. Rf3
{[%clk 0:00:16.6]} 47... Qe5 {[%clk 0:00:41]} 48. Rf2 {[%clk 0:00:15.7]} 48...
h4 {[%clk 0:00:40.9]} 49. gxh4+ {[%clk 0:00:16.2]} 49... Kxh4 {[%clk 0:00:41.3]}
50. Kf1 {[%clk 0:00:16.9]} 50... Kh3 {[%clk 0:00:38.3]} 51. Bg2+ {[%clk
0:00:16]} 51... Kg4 {[%clk 0:00:33.3]} 52. Kg1 {[%clk 0:00:13.5]} 52... Qe1+
{[%clk 0:00:31.8]} 53. Bf1 {[%clk 0:00:13.6]} 53... Qe3 {[%clk 0:00:31]} 54. Kg2
{[%clk 0:00:13.6]} 54... Qg3+ {[%clk 0:00:31.1]} 55. Kh1 {[%clk 0:00:13.7]}
55... Qxf2 {[%clk 0:00:31.5]} 0-1